Cogmind - Beta 11.1 *** ADVENTURER MODE // 2022.04.23 @ 01:14:12 Player: Ms Vella Result: Destroyed by Y-45 Defender with Beam Rifle Performance ------------- Evolutions (2) 1000 Regions Visited (8) 1600 Robots Destroyed (83) 415 Value Destroyed (3888) 3888 Prototype IDs (34) 680 Alien Tech Used (0) 0 Bonus (1002) 1002 TOTAL SCORE: 8585 Bonus ------- High Alert Combat Kills 55 Follower Combat Kills 269 Entered Garrisons 200 Used RIF Installer 500 Friendly Fire -22 Cogmind --------- Core Integrity 0/550 Matter 8/300 Energy 100/100 System Corruption 5% Temperature Critical (622) Movement Core (1850) Ox36 Location -8/Storage Parts ------- > --- POWER (1) -------- (None) > --- PROPULSION (3) --- Light Treads Light Treads > --- UTILITY (5) ------ Huge Storage Unit Machine Analyzer Medium Reactive Plating Hacking Suite Relay Coupler [NC] (20) > --- WEAPON (2) ------- Enhanced Autogun Flak Cannon > --- INVENTORY (25) --- Medium Treads Improved Cooling System High-capacity Storage Unit High-capacity Battery (187) High-capacity Matter Pod (200) Improved Terrain Scanner Advanced Targeting Computer Matter Filter Medium Reactive Plating Makeshift System Shield Relay Coupler [Specialist] (28) Relay Coupler [Heavy] (12) Supersonic Drone Bay (1/1) Improved Heavy Laser Enhanced Autogun Enhanced Autogun Enhanced Autogun Gauss Rifle Flak Cannon Advanced EMP Blaster Remote Datajack Makeshift Hammer Peak State ------------ > --- POWER ------------ Improved Deuterium Engine > --- PROPULSION ------- Light Treads Medium Treads Medium Treads > --- UTILITY ---------- Huge Storage Unit Medium Reactive Plating Hacking Suite Relay Coupler [NC] Supersonic Drone Bay > --- WEAPON ----------- Gauss Rifle Remote Datajack > --- INVENTORY -------- Light Treads Improved Cooling System High-capacity Storage Unit High-capacity Battery High-capacity Matter Pod Machine Analyzer Improved Signal Interpreter Improved Terrain Scanner Advanced Targeting Computer Matter Filter Medium Reactive Plating Medium Reactive Plating Makeshift System Shield Relay Coupler [Specialist] Relay Coupler [Heavy] High-powered Shotgun Enhanced Autogun Enhanced Autogun Enhanced Autogun Enhanced Autogun Enhanced Autogun Flak Cannon Flak Cannon Flak Cannon Makeshift Hammer [Rating: 46] Favorites ----------- Power Improved Deuterium Engine Engine Improved Deuterium Engine Power Core Micro Nuclear Core Propulsion Medium Treads Treads Medium Treads Leg Aluminum Leg Utility Huge Storage Unit Device Hardlight Generator Storage Huge Storage Unit Processor Core Analyzer Hackware Relay Coupler [NC] Protection Light Armor Plating Weapon Makeshift Shrapnel Gun Energy Gun Advanced Beam Rifle Energy Cannon Beam Cannon Ballistic Gun Makeshift Shrapnel Gun Ballistic Cannon Assault Cannon Launcher Advanced EMP Blaster Special Weapon Remote Datajack Build | -11 -10 -10 -10 -9 -8 -8 -8 -8 ------- Run | Scr Mat Min Exi Min Mat Gar Mat Sto Slots Evolved 4 | . . . . . 4 . . . Power . | . . . . . . . . . Propulsion 1 | . . . . . 1 . . . Utility 3 | . . . . . 3 . . . Weapon . | . . . . . . . . . Parts Attached 105 | 1 4 6 3 . 16 21 21 33 Power 7 | . 1 . 1 . . 1 3 1 Engine 5 | . . . . . . 1 3 1 Core 2 | . 1 . 1 . . . . . Reactor . | . . . . . . . . . Propulsion 17 | . . 2 . . 6 3 1 5 Treads 17 | . . 2 . . 6 3 1 5 Leg . | . . . . . . . . . Wheel . | . . . . . . . . . Hover . | . . . . . . . . . Flight . | . . . . . . . . . Utility 42 | . 2 3 . . 9 11 9 8 Device 9 | . . . . . 5 1 1 2 Storage 4 | . 1 2 . . 1 . . . Processor 3 | . . . . . . 2 . 1 Hackware 9 | . . . . . . 3 6 . Protection 17 | . 1 1 . . 3 5 2 5 Artifact . | . . . . . . . . . Weapon 39 | 1 1 1 2 . 1 6 8 19 Energy Gun 5 | 1 1 . . . 1 1 . 1 Energy Cannon 2 | . . . 1 . . . 1 . Ballistic Gun 11 | . . . 1 . . 1 2 7 Ballistic Cannon 11 | . . 1 . . . 1 2 7 Launcher 2 | . . . . . . . . 2 Special Weapon 8 | . . . . . . 3 3 2 Impact Weapon . | . . . . . . . . . Slashing Weapon . | . . . . . . . . . Piercing Weapon . | . . . . . . . . . Special Melee Weapon . | . . . . . . . . . Unidentified Prototypes 7 | . . . . . 2 . 2 3 Corrupted Parts 1 | . . . . . . . . 1 System Corruption 3 | . . . . . . . . 3 Parts Lost 10 | . . . . . . 4 1 5 Power 1 | . . . . . . . . 1 Propulsion 4 | . . . . . . 2 . 2 Utility 4 | . . . . . . 2 1 1 Weapon 1 | . . . . . . . . 1 Highest Loss Streak 5 | . . . . . . 1 1 5 To Critical Strikes 1 | . . . . . . . . 1 Average Slot Usage (%) 98 | . 99 99 100 100 99 92 99 99 Engine 5 | . 9 . . . . 8 8 8 Core 4 | . 4 14 14 14 9 . . . Treads 25 | . . 26 28 28 27 26 27 26 Leg 1 | . 28 1 . . . . . . Device 3 | . . . . . 21 1 . . Storage 10 | . 14 14 14 14 9 9 9 9 Processor 4 | . . . . . . 9 6 6 Hackware 11 | . . . . . . 8 26 19 Protection 9 | . 13 13 14 14 13 10 2 9 Energy Gun 2 | . 14 . . . 7 1 . . Energy Cannon 1 | . . . 11 14 1 . . . Ballistic Gun 9 | . 14 14 14 14 9 12 1 8 Ballistic Cannon 5 | . . 13 2 . . 2 9 9 Special Weapon 2 | . . . . . . 1 7 . Naked Turns . | . . . . . . . . . Heaviest Build 142 | 14 53 53 54 54 101 102 118 142 Greatest Support 76 | 20 20 40 40 40 76 76 76 76 Greatest Overweight (x) 2 | . 2 2 1 1 1 1 1 2 Average Overweight (x) 1 | . 1 1 1 1 . 1 1 1 Largest Inventory Capacity 25 | 8 20 25 20 20 25 25 25 25 Average Capacity 23 | 8 19 20 20 20 21 25 25 25 Most Carried 25 | 6 15 20 20 20 25 25 25 25 Average Carried 21 | 3 8 19 19 20 21 22 23 24 Final Capacity 25 | 8 20 20 20 20 25 25 25 25 Final Carried 25 | 1 15 20 20 20 25 25 25 22 Class Distribution -------------------- 33% | Mutant 23% | Commander-Mutant 22% | Bothacker-Mutant 16% | Scavenger-Mutant 3% | Hacker-Mutant Dominant Class ---------------- Mutant | -10/Materials Mutant | -10/Mines Mutant | -10/Exiles Mutant | -9/Mines Scavenger-Mutant | -8/Materials Bothacker-Mutant | -8/Garrison Bothacker-Mutant | -8/Materials Commander-Mutant | -8/Storage Resources | -11 -10 -10 -10 -9 -8 -8 -8 -8 ----------- Run | Scr Mat Min Exi Min Mat Gar Mat Sto Matter Collected 3089 | 200 131 170 50 121 312 620 437 1048 Remotely . | . . . . . . . . . Salvage Created 3012 | . 439 9 50 100 539 782 115 978 Parts 157 | . 23 2 4 2 21 45 9 51 Haulers Intercepted 1 | . 1 . . . . . . . Recyclers Shooed 5 | . 3 . . . 1 . . 1 Parts Field Recycled . | . . . . . . . . . Retrieved Matter . | . . . . . . . . . Parts Self-Destructed . | . . . . . . . . . Prevented . | . . . . . . . . . Kills | -11 -10 -10 -10 -9 -8 -8 -8 -8 ------- Run | Scr Mat Min Exi Min Mat Gar Mat Sto Combat Hostiles Destroyed 72 | . 9 1 . 2 12 19 6 23 Guns 48 | . 9 . . 1 9 18 2 9 Cannons 24 | . . 1 . 1 3 1 4 14 Classes Destroyed 14 | . 4 . . 1 3 2 . 4 Worker 2 | . . . . . . . . 2 Builder 3 | . . . . . . . . 3 Hauler 1 | . 1 . . . . . . . Recycler 2 | . 1 . . . . . . 1 Mechanic 1 | . . . . . . . . 1 Operator 2 | . . . . . 1 . . 1 Swarmer 7 | . 3 1 . . . . 3 . Grunt 36 | . 6 . . 1 5 13 . 11 Duelist 7 | . . . . 1 . 2 1 3 Sentry 15 | . . . . . 6 . 1 8 Demolisher 1 | . . . . . . . . 1 Specialist 2 | . . . . . . 2 . . Hunter 3 | . . . . . 1 1 1 . Behemoth 1 | . . . . . . 1 . . Best Kill Streak 5 | . 3 1 . 2 4 3 3 5 Combat Bots Only 5 | . 3 1 . 2 3 3 3 5 Max Kills in Single Turn 1 | . 1 1 . 1 1 1 1 1 Gunslinging . | . . . . . . . . . Exploded . | . . . . . . . . . Melee . | . . . . . . . . . Uniques/NPCs Destroyed . | . . . . . . . . . Combat | -11 -10 -10 -10 -9 -8 -8 -8 -8 -------- Run | Scr Mat Min Exi Min Mat Gar Mat Sto Damage Taken 4391 | . 260 28 . 8 277 1322 337 2159 Core 631 | . 58 16 . . 27 162 23 345 Absorbed by Shields 150 | . . . . . 136 14 . . Redirected to Shielding 2 | . . . . . . . 2 . Regen/Repaired (Parts) 435 | . . . . . . . 98 337 Core Remaining (%) 85 | 100 . . . 70 . . . . Volleys Fired 258 | . 27 6 3 2 32 72 39 77 Largest 2 | . 2 2 2 2 2 2 2 2 Hottest 88 | . 85 55 80 84 85 85 69 88 Shots Fired 446 | . 53 12 6 4 63 122 47 139 Gun 271 | . 53 6 3 2 50 92 8 57 Cannon 140 | . . 6 3 2 13 19 20 77 Launcher . | . . . . . . . . . Special 35 | . . . . . . 11 19 5 Kinetic 338 | . 27 12 3 2 31 101 28 134 Thermal 73 | . 26 . 3 2 32 10 . . Explosive . | . . . . . . . . . Electromagnetic . | . . . . . . . . . Robot Hit Streak 29 | . 11 3 8 4 26 29 12 24 Robot Miss Streak 5 | . 1 1 . 1 3 3 2 5 Penetration Max . | . . . . . . . . . Secondary Targets 2 | . 2 . . . . . . . Max Gunslinging Chain 1 | . 1 . . . . . . . Shots Hit Robots 326 | . 39 9 5 2 46 90 36 99 Core Hits 225 | . 21 2 1 3 30 51 10 107 Critical Kills 1 | . . . . . 1 . . . Critical Parts Destroyed 1 | . 1 . . . . . . . Critical Strikes 7 | . 2 . . . 2 2 1 . Burn 4 | . 1 . . . 1 2 . . Meltdown 1 | . . . . . 1 . . . Destroy 1 | . 1 . . . . . . . Blast 1 | . . . . . . . 1 . Melee Attacks . | . . . . . . . . . Impact . | . . . . . . . . . Slashing . | . . . . . . . . . Piercing . | . . . . . . . . . Sneak Attacks . | . . . . . . . . . Combat Hostiles . | . . . . . . . . . Follow-up Attacks . | . . . . . . . . . Damage Inflicted 6164 | . 528 153 95 54 1021 1628 451 2234 Guns 3747 | . 517 79 31 27 861 1470 76 686 Cannons 2354 | . . 69 64 18 157 158 375 1513 Explosions . | . . . . . . . . . Melee . | . . . . . . . . . Ramming 63 | . 11 5 . 9 3 . . 35 Kinetic 5209 | . 284 148 31 27 601 1468 451 2199 Thermal 892 | . 233 . 64 18 417 160 . . Explosive . | . . . . . . . . . Electromagnetic . | . . . . . . . . . Impact . | . . . . . . . . . Slashing . | . . . . . . . . . Piercing . | . . . . . . . . . Highest Corruption 5 | . . . . . . . . 5 Average Corruption 4 | . . . . . . . . 4 Corruption Purged . | . . . . . . . . . Corruption Blocked . | . . . . . . . . . Effects 36 | . . . . . . . . 36 Message Errors 10 | . . . . . . . . 10 Matter Fused 7 | . . . . . . . . 7 Heat Flow Errors 4 | . . . . . . . . 4 Energy Discharges 3 | . . . . . . . . 3 Data Loss (minor) 4 | . . . . . . . . 4 Data Loss (major) 3 | . . . . . . . . 3 Misfires 3 | . . . . . . . . 3 Alerts 2 | . . . . . . . . 2 Overload Shots . | . . . . . . . . . Overflow Damage 10 | . . . . . . . 7 3 Projectiles 10 | . . . . . . . 7 3 Explosions . | . . . . . . . . . Melee . | . . . . . . . . . Knockbacks 19 | . . . . . . 2 2 15 Impact . | . . . . . . . . . Kinetic 18 | . . . . . . 2 2 14 Secondary 1 | . . . . . . . . 1 Self-Inflicted Damage . | . . . . . . . . . Shots . | . . . . . . . . . Rammed 11 | . . 1 . 4 1 . . 5 Targets Rammed 14 | . 2 1 . 4 1 . . 6 Kicked 2 | . 2 . . . . . . . Crushed 1 | . . . . . . . . 1 Highest Temperature 693 | . 171 45 99 56 351 129 71 693 Average Temperature 96 | . 52 19 52 30 125 23 23 145 Received Heat Transfer 1929 | . 99 9 . 6 138 489 144 1044 Effects 25 | . . . . . 2 . . 23 Shutdowns 1 | . . . . . 1 . . . Energy Bleed 3 | . . . . . 1 . . 2 Interference 4 | . . . . . . . . 4 Matter Decay 5 | . . . . . . . . 5 Short Circuit 4 | . . . . . . . . 4 Damage (minor) 5 | . . . . . . . . 5 Damage (major) 2 | . . . . . . . . 2 Damage (core) 1 | . . . . . . . . 1 Siege Activations . | . . . . . . . . . Robots Corrupted . | . . . . . . . . . Combat Hostiles . | . . . . . . . . . Parts Fried . | . . . . . . . . . Impact Corruptions . | . . . . . . . . . Robots Melted 1 | . . . . . 1 . . . Combat Hostiles . | . . . . . . . . . Parts Melted 3 | . 1 . . . . 2 . . Heat Transferred 2183 | . 703 . 111 37 888 444 . . Parts Sabotaged . | . . . . . . . . . Parts Stolen . | . . . . . . . . . Parts Stripped . | . . . . . . . . . Power Chain Reactions . | . . . . . . . . . Missiles Intercepted . | . . . . . . . . . Alert | -11 -10 -10 -10 -9 -8 -8 -8 -8 ------- Run | Scr Mat Min Exi Min Mat Gar Mat Sto Peak Influence 590 | . 185 151 . 50 255 590 388 267 Initial 247 | . . . . . . 3 247 10 Average 122 | . 46 19 . 15 55 399 55 62 Maximum Alert Level 2 | . . . . . 1 2 1 1 Low Security (%) 78 | 100 100 100 . 100 95 13 90 95 Level 1 10 | . . . . . 4 32 9 4 Level 2 11 | . . . . . . 53 . . Level 3 . | . . . . . . . . . Level 4 . | . . . . . . . . . Level 5 . | . . . . . . . . . High Security . | . . . . . . . . . Max Security . | . . . . . . . . . Squads Dispatched 8 | . 1 . . . 2 . . 5 Investigation 3 | . 1 . . . 1 . . 1 Extermination . | . . . . . . . . . Reinforcement 2 | . . . . . 1 . . 1 Assault 2 | . . . . . . . . 2 Garrison 1 | . . . . . . . . 1 Intercept . | . . . . . . . . . Searches Triggered . | . . . . . . . . . Construction Impeded . | . . . . . . . . . Haulers Reinforced . | . . . . . . . . . Active Scanning Responses . | . . . . . . . . . Cargo Convoy Interrupts . | . . . . . . . . . Stealth | -11 -10 -10 -10 -9 -8 -8 -8 -8 --------- Run | Scr Mat Min Exi Min Mat Gar Mat Sto Distress Signals 8 | . 1 . . . 2 . 2 3 Communications Jammed . | . . . . . . . . . Distress Signals . | . . . . . . . . . Times Spotted 158 | . 13 6 . 2 30 30 26 51 Peak Tracking Total 11 | . 3 3 . 2 5 7 4 11 Tactical Retreats 6 | . . . . . . 5 . 1 Traps | -11 -10 -10 -10 -9 -8 -8 -8 -8 ------- Run | Scr Mat Min Exi Min Mat Gar Mat Sto Traps Triggered 16 | . 2 . . . . 9 . 5 Indirectly . | . . . . . . . . . Trap Hack Attempts . | . . . . . . . . . Triggered . | . . . . . . . . . Disarmed . | . . . . . . . . . Reprogrammed . | . . . . . . . . . Reused . | . . . . . . . . . Traps Extracted . | . . . . . . . . . Installed 4 | . . 4 . . . . . . Triggered . | . . . . . . . . . Machines | -11 -10 -10 -10 -9 -8 -8 -8 -8 ---------- Run | Scr Mat Min Exi Min Mat Gar Mat Sto Machines Disabled 10 | . . 1 . . 2 3 1 3 Max in Single Turn 1 | . . . . . 1 1 1 1 Garrison Relay 3 | . . . . . . 3 . . Machines Sabotaged . | . . . . . . . . . Garrisons Compromised . | . . . . . . . . . Overloaded Fab Kills . | . . . . . . . . . Hacking | -11 -10 -10 -10 -9 -8 -8 -8 -8 --------- Run | Scr Mat Min Exi Min Mat Gar Mat Sto Machines Accessed 17 | . . 1 2 . 3 . 5 6 Terminals 9 | . . . . . 1 . 3 5 Fabricators . | . . . . . . . . . Repair Stations 3 | . . . . . 1 . 1 1 Recycling Units . | . . . . . . . . . Scanalyzers 1 | . . . . . . . 1 . Garrison Access 1 | . . . . . 1 . . . Total Hacks 44 | . . 1 2 . 9 . 18 14 Successful 32 | . . 1 2 . 4 . 13 12 Failed 12 | . . . . . 5 . 5 2 Catastrophic 2 | . . . . . 2 . . . Database Lockouts . | . . . . . . . . . Manual 15 | . . . 2 . 6 . 4 3 Terminals 24 | . . . . . 6 . 10 8 Fabricators . | . . . . . . . . . Repair Stations 10 | . . . . . 2 . 2 6 Recycling Units . | . . . . . . . . . Scanalyzers 6 | . . . . . . . 6 . Garrison Access 1 | . . . . . 1 . . . Terminal Hacks 13 | . . 1 2 . 1 . 4 5 Record 2 | . . . 1 . . . 1 . Robot Analysis 1 | . . . . . . . . 1 Open Door 4 | . . 1 . . . . . 3 Branch Access Points 1 | . . . . . . . 1 . Terminal Index 2 | . . . . . 1 . 1 . Repair Station Index 1 | . . . . . . . . 1 Garrison Index 1 | . . . . . . . 1 . EX-Prototype ID Bank 1 | . . . 1 . . . . . Fabricator Hacks . | . . . . . . . . . Repair Station Hacks 9 | . . . . . 1 . 2 6 Scan Component 5 | . . . . . 1 . 1 3 Repair 4 | . . . . . . . 1 3 Recycling Unit Hacks . | . . . . . . . . . Scanalyzer 6 | . . . . . . . 6 . Insert Component 3 | . . . . . . . 3 . Analyze 3 | . . . . . . . 3 . Garrison Access Hacks 1 | . . . . . 1 . . . Unlock Access 1 | . . . . . 1 . . . Unauthorized Hacks 3 | . . . . . 1 . 1 1 Terminals 3 | . . . . . 1 . 1 1 Botnet 3 | . . . . . 1 . 1 1 Fabricators . | . . . . . . . . . Repair Stations . | . . . . . . . . . Recycling Units . | . . . . . . . . . Scanalyzers . | . . . . . . . . . Garrison Access . | . . . . . . . . . Data Cores Recovered . | . . . . . . . . . Used . | . . . . . . . . . Hacking Detections 9 | . . . . . 2 . 4 3 Full Trace Events 2 | . . . . . 1 . . 1 Feedback Events . | . . . . . . . . . Feedback Blocked . | . . . . . . . . . Robot Schematics Acquired . | . . . . . . . . . Robots Built . | . . . . . . . . . Authchips . | . . . . . . . . . Time . | . . . . . . . . . Total Robot Build Rating . | . . . . . . . . . Part Schematics Acquired 3 | . . . . . . . 3 . Parts Built . | . . . . . . . . . Authchips . | . . . . . . . . . Time . | . . . . . . . . . Total Part Build Rating . | . . . . . . . . . Parts Repaired 4 | . . . . . . . 1 3 Time 154 | . . . . . . . 22 132 Parts Recycled . | . . . . . . . . . Recycled Matter . | . . . . . . . . . Retrieved Matter . | . . . . . . . . . Retrieved Components . | . . . . . . . . . Parts Scanalyzed 3 | . . . . . . . 3 . Part Schematics Acquired 3 | . . . . . . . 3 . Parts Damaged 2 | . . . . . . . 2 . Bothacking | -11 -10 -10 -10 -9 -8 -8 -8 -8 ------------ Run | Scr Mat Min Exi Min Mat Gar Mat Sto Used RIF Installer 1 | . . . . . . 1 . . Robots Hacked 23 | . . . . . . 8 12 3 Non-combat 6 | . . . . . . . 5 1 Combat 17 | . . . . . . 8 7 2 Robot Hacks Applied 25 | . . . . . . 8 14 3 parse_system 3 | . . . . . . . 2 1 drop_inventory 1 | . . . . . . . 1 . link_fov 1 | . . . . . . . 1 . scatter_targeting 2 | . . . . . . 1 1 . amplify_resonance 1 | . . . . . . . . 1 go_dormant 1 | . . . . . . . . 1 overwrite_iff 3 | . . . . . . 3 . . formatsys_low 2 | . . . . . . . 2 . formatsys_high 11 | . . . . . . 4 7 . Relay Couplers Released 14 | . . . . . . 14 . . Machine Destruction 14 | . . . . . . 14 . . Attached 8 | . . . . . . 3 5 . Fabnet Peak Effective % . | . . . . . . . . . Robots Rewired 2 | . . . 2 . . . . . Allies Hacked . | . . . . . . . . . Hacks Repelled . | . . . . . . . . . Allies | -11 -10 -10 -10 -9 -8 -8 -8 -8 -------- Run | Scr Mat Min Exi Min Mat Gar Mat Sto Total Allies 35 | . . 2 2 3 . 7 9 12 Largest Group 16 | . . 2 2 5 3 5 9 16 Highest-Rated Group 302 | . . 42 42 69 53 85 147 302 Highest-Rated Ally 31 | . . 31 31 21 21 21 23 31 Total Orders 53 | . . . . 4 2 5 20 22 STAY 30 | . . . . 3 1 4 10 12 ROAM 1 | . . . . . . . . 1 FOLLOW 16 | . . . . 1 1 1 5 8 AID 1 | . . . . . . . 1 . PICKUP 2 | . . . . . . . 2 . COLLECT 2 | . . . . . . . 2 . EXPLORE 1 | . . . . . . . . 1 Ally Attacks 142 | . . 10 . 9 13 23 14 73 Total Damage 1942 | . . 126 . 77 240 402 205 892 Kills 20 | . . 4 . . 4 . 3 9 Allies Corrupted . | . . . . . . . . . Allies Melted . | . . . . . . . . . Intel | -11 -10 -10 -10 -9 -8 -8 -8 -8 ------- Run | Scr Mat Min Exi Min Mat Gar Mat Sto Robot Analysis Total 1 | . . . . . . . . 1 Derelict Logs Recovered 4 | . . 2 . 2 . . . . Drone Launches 1 | . . . . . . . . 1 Drone Recoveries 1 | . . . . . . . . 1 Exploration | -11 -10 -10 -10 -9 -8 -8 -8 -8 ------------- Run | Scr Mat Min Exi Min Mat Gar Mat Sto Turns Passed 17115 | 5 1049 1364 1373 982 2214 3292 4267 2569 Spaces Moved 6247 | 1 384 527 557 387 847 1212 1517 815 Core . | . . . . . . . . . Treads 5845 | . . 510 557 387 847 1212 1517 815 Legs 402 | 1 384 17 . . . . . . Wheels . | . . . . . . . . . Hover . | . . . . . . . . . Flight . | . . . . . . . . . Fastest Speed 120 | 120 120 240 240 240 160 240 240 240 Average Speed 240 | 120 244 240 240 240 238 242 240 240 Slowest Speed 320 | 120 260 260 240 240 243 243 240 320 Overloaded Moves . | . . . . . . . . . Propulsion Burnouts . | . . . . . . . . . Robots Hopped . | . . . . . . . . . Cave-ins Triggered . | . . . . . . . . . Exploration Rate (%) 64 | 2 69 99 92 50 46 84 61 81 Regions Visited 8 Branch Regions 4 Pre-discovered Areas 2 | . . . 1 1 . . . . Known Exits Taken 3 | . . . . 1 1 . 1 . Unknown Exits Taken 4 | 1 1 1 1 . . . . . Scrap Searched 2 | . . 2 . . . . . . Spaces Dug . | . . . . . . . . . Terrain Destroyed 3 | . . . . . . . 3 . Melee . | . . . . . . . . . Projectile 3 | . . . . . . . 3 . AOE . | . . . . . . . . . Terrain Rammed . | . . . . . . . . . Walls Destroyed . | . . . . . . . . . Machines Disabled . | . . . . . . . . . Actions | -11 -10 -10 -10 -9 -8 -8 -8 -8 --------- Run | Scr Mat Min Exi Min Mat Gar Mat Sto Total 7921 | 6 439 612 590 432 979 1455 2110 1298 Wait 1101 | . 6 51 2 40 59 103 501 339 Move 6238 | . 383 526 556 386 846 1210 1516 815 Hop . | . . . . . . . . . Pick Up 80 | . 14 10 5 . 10 19 14 8 Fast Attach 39 | . 3 2 2 . 7 5 7 13 Attach 20 | . . 2 . . 2 7 4 5 Detach 3 | . . . . . 1 . . 2 Swap 46 | 1 1 2 1 . 7 9 10 15 Drop 91 | 5 3 8 7 . 14 17 19 18 Fire 258 | . 27 6 3 2 32 72 39 77 Melee . | . . . . . . . . . Ram . | . . . . . . . . . Kick 2 | . 2 . . . . . . . Crush 12 | . . 1 . 4 1 . . 6 Escape Stasis 13 | . . . . . . 13 . . Rewire 14 | . . . 14 . . . . . Trap 4 | . . 4 . . . . . . Miscellaneous . | . . . . . . . . . Route ------- -11/Scrapyard -10/Materials (discovered 2 exits: [*Mat] / *Min) -10/Mines (discovered 3 exits: [*Mat x2] / *Exi) -10/Exiles (discovered 2 exits: [*Min x2]) -9/Mines -8/Materials (discovered 4 exits: [*Fac x2] / *Sto / Gar) -8/Garrison (discovered 3 exits: *Mat x3) -8/Materials (discovered 2 exits: [*Fac] / *Sto) -8/Storage (discovered 1 exit: [*Fac]) History --------- Turn | Location | Event 6 | -11/Scrapyard | Discovered new exit (range 0) 6 | -11/Scrapyard | Entered Materials 310 | -10/Materials | Build established: Mutant 582 | -10/Materials | Discovered new exit (range 13) 800 | -10/Materials | Discovered new exit (range 11) 1055 | -10/Materials | Entered Mines 1066 | -10/Mines | Joined a pair of Derelicts in attacking an 0b10 outpost 1211 | -10/Mines | Discovered new exit (range 16) 1377 | -10/Mines | Found the Drone Emporium 1389 | -10/Mines | Found Prototype Device 1533 | -10/Mines | Learned Materials terminal intel 1660 | -10/Mines | Found a hidden stash of uninstalled traps 1748 | -10/Mines | Learned Materials stockpile data 1777 | -10/Mines | A weapon hastily lodged in a ceiling crevice suddenly fell to the ground 2203 | -10/Mines | Discovered new exit (range 11) 2391 | -10/Mines | Deemed a non-threat by the Exiles lab entrance 2391 | -10/Mines | Discovered new exit (range 5) 2419 | -10/Mines | Entered Exiles 2419 | -10/Exiles | Found Exiles lab destroyed 2419 | -10/Exiles | Accompanied by 2 allies 2449 | -10/Exiles | Led the pair of lost Derelicts to a safe place 2453 | -10/Exiles | Discovered new exit (range 15) 2873 | -10/Exiles | Learned location of Zion (-6) 3489 | -10/Exiles | Opened EX-Vault 3513 | -10/Exiles | Found Supersonic Drone Bay 3763 | -10/Exiles | Discovered new exit (range 14) 3792 | -10/Exiles | Entered Mines 3792 | -9/Mines | Accompanied by 2 allies 3891 | -9/Mines | Assisted by bots powering up and referring to "LRC-V3" 3893 | -9/Mines | Identified exit to Materials 4183 | -9/Mines | Build established: Commander-Mutant 4563 | -9/Mines | Build established: Mutant 4774 | -9/Mines | Entered Materials 4774 | -8/Materials | Accompanied by 3 allies 4774 | -8/Materials | Evolved 4 slots: Propulsion x1, Utility x3 4775 | -8/Materials | Loaded intel: 12 terminal locations 4814 | -8/Materials | Discovered new exit (range 12) 5085 | -8/Materials | Build established: Scavenger-Mutant 5584 | -8/Materials | Identified Decoy Drone Bay 5712 | -8/Materials | Discovered new exit (range 10) 6234 | -8/Materials | Discovered new exit (range 13) 6484 | -8/Materials | Identified exit to Garrison 6577 | -8/Materials | Build established: Mutant 6988 | -8/Materials | Entered Garrison 6988 | -8/Garrison | Accompanied by 3 allies 7001 | -8/Garrison | Installed Relay Interface Framework 7046 | -8/Garrison | Triggered checkpoint 7298 | -8/Garrison | Triggered checkpoint 7311 | -8/Garrison | Garrison Relay disabled 7412 | -8/Garrison | Triggered checkpoint 7528 | -8/Garrison | Triggered checkpoint 7568 | -8/Garrison | Triggered checkpoint 8074 | -8/Garrison | Build established: Scavenger-Mutant 8196 | -8/Garrison | Triggered checkpoint 8315 | -8/Garrison | Discovered new exit (range 8) 8437 | -8/Garrison | Spotted B-75 Beast 8864 | -8/Garrison | Destroyed B-75 Beast 9122 | -8/Garrison | Triggered checkpoint 9174 | -8/Garrison | Build established: Mutant 9177 | -8/Garrison | Garrison Relay disabled 9279 | -8/Garrison | Discovered new exit (range 12) 9473 | -8/Garrison | Discovered new exit (range 13) 9478 | -8/Garrison | Build established: Bothacker-Mutant 9530 | -8/Garrison | Triggered checkpoint 9593 | -8/Garrison | Garrison Relay disabled 10280 | -8/Garrison | Entered Materials 11354 | -8/Materials | Discovered new exit (range 5) 12651 | -8/Materials | Identified exit to Storage 13054 | -8/Materials | Build established: Commander-Mutant 13127 | -8/Materials | Repaired Remote Datajack 14547 | -8/Materials | Entered Storage 14547 | -8/Storage | Accompanied by 8 allies 15711 | -8/Storage | Build established: Hacker-Mutant 16081 | -8/Storage | Assisted by bots powering up and referring to "LRC-V3" 16373 | -8/Storage | Build established: Commander-Mutant 16624 | -8/Storage | Discovered new exit (range 9) 16769 | -8/Storage | Repaired Med. Treads 16814 | -8/Storage | Repaired Med. Treads 16860 | -8/Storage | Repaired Med. Reactive Plating 17010 | -8/Storage | Met a pair of Derelict thieves 17043 | -8/Storage | Garrison activated, responded to threat 17055 | -8/Storage | Core integrity fell below 50% 17097 | -8/Storage | Core integrity fell below 20% 17116 | -8/Storage | Destroyed by Y-45 Defender with Beam Rifle Last Messages --------------- 17106_ Adv. EMP Blaster broken. 17106_ Overheating: Short circuit. 17106_ Extracted 43 energy. 17106_ Critical hit (Burn: +37). 17107_ Overheating: Relay Coupler [NC] damaged (-1). 17107_ Extracted 25 energy. 17107_ M-28 Smith destroyed. 17107_ R-06 Scavenger collects Core Shielding. 17109_ Overheating: Core damaged (-71). 17110_ Lgt. Treads broken. 17110_ Overheating: Short circuit. 17110_ G-47 Trooper destroyed. 17111_ Overheating: Matter decay (-2). 17112_ G-50 Soldier destroyed. 17112_ R-06 Scavenger collects Core Shielding. 17113_ Lgt. Treads broken. 17113_ Overheating: Short circuit. 17115_ Overheating: Matter decay (-1). 17115_ Acquired Hcp. Battery. 17115_ R-06 Scavenger collects Adv. Heat Sink. Map ----- +----------------------------------------------------+ | ??????????????????????????????????????### | | ??????????????????????????????????????# | | ??????????????????????????????????????# | | ??????????????????????????????????????# | | ??????????????????????????????????????# | | ??????????????????????????????????????# " | | ???????????????????????""????########## " | | ????????????????????????G"???# # " | | ???????????????????????""????# # | | ?????????????????????????????#"""" #+# | | ?????????????????????????????#"""" # | | ?????????????? ??????????????#"""" + | | ??????????????+##????????????#"""" # | | ?????????????? ????????????# % # | | ?????????????? +???????????#% * # | | ???????????T??# #???????????# [% # | | ??????????????# #???????????## ####### | | ??????????????# +????????????##??#!!!# | | ??????????????#a #????????????????#!!!# | | ??????????????# %#????????????????# # | | ??????????????#Ya#????????????????# # | | ??????######??#*Y#????????????????##+## | | ??????#* * ####[=#?????????????????# | | ??????# ** #T##%%#?????????????????#####+ | | ??????# " #*%#?????????????????# | | ??????#* #%@###???????????????# """" | | ??????#* " #%!""#???????????????# "=[[ | | ??????#** !#!%+]*["#???????????????# " =" | | ??????#########!%""#???????????????# "[[" | | ??????????????#% ###???????????????# "=[" | | ??????????#####%d###########+#?????# """" | | ????????### %%r ????# | | ????????#"" ????#####+ | | ????????#T ????????# | | ????????### ##########+#####????????##+ | | ??????????# u#???????????????????????# | | ??????????# %#???????????????????????# | | ??######### #???????????????????????# | | ??? # #???????????????????????# | | ?# """ # #???????????????????????# | | ?# """ # #???????????????????????# | | ?# """ # #???????###?????????????# | | ?# + %#########%#?????????????# | | ?# """ # #% [#???############# | | ?# """ # # """" | #???# # | | ?# """[ # # """ %*#???# # " | | ?? !%= + # """" = #???# = # " " " | | ??# ######### # """" #???#% * # "R" " | | ??#?????????# # #####! # """ | | ????????##### # / + /#######+ | +----------------------------------------------------+ Best States ------------- Heat Dissipation 58 Energy Generation 16 Energy Capacity 290 Matter Stores 300 Matter Capacity 300 Sight Range 20 Terrain Scan Range 16 Terrain Scan Density 10 Armor Coverage 450 Resistance: KI 50 Resistance: TH 20 Resistance: EX 20 Resistance: EM 35 Resistance: I 20 Resistance: S 20 Resistance: P 20 Core Shielding 20 Evasion (%) 50 Core Analysis 6 Recoil Reduction 3 Offensive Hacking 20 Relay Coupler Types 3 Relay Coupler Value 47 Item Schematics ----------------- Mak. Shrapnel Gun | -8/Materials | Scanalyzed Mak. Terrain Scanner | -8/Materials | Scanalyzed Hcp. Storage Unit | -8/Materials | Scanalyzed Robot Schematics ------------------ None Fabricated ------------ Nothing Alien Tech Used ----------------- None Achievements -------------- None Challenges ------------ None Game ------ Seed MinesnifferShockNukerbomber Manual? 0 Play Time 01:48:23 Cumulative 905.3 hours Start 2022.04.22 @ 16:53:19 End 2022.04.23 @ 01:14:12 Sessions 4 Manual Loads 0 Difficulty Adventurer Special Mode None Game No. 198 Rogue 1 Adventurer 197 Explorer 0 Win Type - Total 3 Types 3/0/0/0/0/0/0/0/0 Lore% 68 Gallery% 81 Achievement% 64 Wizard Run 0 Options --------- ASCII 0 Keyboard 0 Movement Mouse Keybinds 0 Fullscreen 0 Font 16/SmallcapsGlow Map View 76x50 Tactical HUD 1 Map Filters NONE Filters BRIGHTNESS(125)|SATURATION(75)|LOW_CONTRAST(13,24,33)|SHIFT_HUE(130) Steam 1 RUN: 5c4c3de0-a3b1-45cc-8393-968e78acebb3